fUST/lending_fUST_20251010
["ID","MTS","AMOUNT","RATE_DAILY","PERIOD"]
[390564785,1760086238636,-500.0,0.00016438,2]
[390564786,1760086238645,-500.0,0.00016438,2]
[390564787,1760086238654,-500.0,0.00016438,2]
[390564788,1760086238664,-921.82,0.00016438,2]
[390564789,1760086238676,-748.9,0.00016438,2]
[390564790,1760086238685,-1162.93,0.00016438,2]
[390564791,1760086238695,-500.0,0.00016438,2]
[390564792,1760086238704,-500.0,0.00016438,2]
[390564793,1760086238714,-500.0,0.00016438,2]
[390564794,1760086238723,-500.0,0.00016438,2]
[390564795,1760086238733,-500.0,0.00016438,2]
[390564796,1760086238742,-500.0,0.00016438,2]
[390564797,1760086238752,-6947.29,0.00016438,2]
[390564798,1760086238762,-500.0,0.00016438,2]
[390564799,1760086238771,-770.88,0.00016438,2]
[390564800,1760086238780,-500.0,0.00016438,2]
[390564801,1760086238789,-500.0,0.00016438,2]
[390564802,1760086238798,-500.0,0.00016438,2]
[390564803,1760086238808,-500.0,0.00016438,2]
[390564804,1760086238818,-503.57841351,0.00016438,2]
[390564805,1760086238827,-500.0,0.00016438,2]
[390564806,1760086238838,-500.0,0.00016438,2]
[390564807,1760086238847,-500.0,0.00016438,2]
[390564808,1760086238858,-500.0,0.00016438,2]
[390564809,1760086238867,-500.0,0.00016438,2]
[390564810,1760086238877,-500.87475987,0.00016438,2]
[390564811,1760086238887,-500.0,0.00016438,2]
[390564812,1760086238896,-500.0,0.00016438,2]
[390564813,1760086238906,-2072.42,0.00016438,2]
[390564814,1760086238915,-236.98992778,0.00016438,2]
[390564815,1760086238935,-263.01007222,0.00016438,2]
[390564816,1760086238944,-500.0,0.00016438,2]
[390564817,1760086238955,-500.0,0.00016438,2]
[390564818,1760086238964,-500.0,0.00016438,2]
[390564819,1760086238975,-500.0,0.00016438,2]
[390564820,1760086238985,-500.0,0.00016438,2]
[390564821,1760086238995,-500.0,0.00016438,2]
[390564822,1760086239005,-500.0,0.00016438,2]
[390564823,1760086239015,-879.56,0.00016438,2]
[390564824,1760086239024,-500.60334351,0.00016438,2]
[390564825,1760086239034,-500.0,0.00016438,2]
[390564826,1760086239043,-500.0,0.00016438,2]
[390564827,1760086239053,-500.0,0.00016438,2]
[390564828,1760086239063,-500.0,0.00016438,2]
[390564829,1760086239072,-500.0,0.00016438,2]
[390564830,1760086239082,-500.0,0.00016438,2]
[390564831,1760086239091,-242.78753328,0.00016438,2]
[390564832,1760086239101,-500.0,0.00016438,2]
[390564833,1760086239111,-2182.76,0.00016438,2]
[390564834,1760086239121,-500.0,0.00016438,2]
[390564835,1760086239131,-500.0,0.00016438,2]
[390564836,1760086239140,-500.0,0.00016438,2]
[390564837,1760086239151,-500.0,0.00016438,2]
[390564838,1760086239160,-500.0,0.00016438,2]
[390564839,1760086239169,-500.0,0.00016438,2]
[390564840,1760086239186,-500.0,0.00016438,2]
[390564841,1760086239196,-500.0,0.00016438,2]
[390564842,1760086239205,-3235.43,0.00016438,2]
[390564843,1760086239215,-500.0,0.00016438,2]
[390564844,1760086239225,-500.0,0.00016438,2]
[390564845,1760086239235,-6211.09,0.00016438,2]
[390564846,1760086239244,-500.0,0.00016438,2]
[390564847,1760086239254,-500.0,0.00016438,2]
[390564848,1760086239263,-500.0,0.00016438,2]
[390564849,1760086239274,-500.0,0.00016438,2]
[390564850,1760086239284,-500.0,0.00016438,2]
[390564851,1760086239293,-500.0,0.00016438,2]
[390564852,1760086239303,-500.0,0.00016438,2]
[390564853,1760086239313,-359.67318463,0.00016438,2]
[390564854,1760086239514,-500.0,0.00016438,2]
[390564855,1760086239524,-500.0,0.00016438,2]
[390564856,1760086239535,-500.0,0.00016438,2]
[390564857,1760086239545,-500.0,0.00016438,2]
[390564858,1760086239554,-500.0,0.00016438,2]
[390564859,1760086239564,-502.26101463,0.00016438,2]
[390564860,1760086239573,-500.0,0.00016438,2]
[390564861,1760086239583,-500.0,0.00016438,2]
[390564862,1760086239593,-468.96639749,0.00016438,2]
[390564863,1760086239603,-500.0,0.00016438,2]
[390564864,1760086239612,-500.0,0.00016438,2]
[390564865,1760086239621,-864.2,0.00016438,2]
[390564866,1760086239630,-500.0,0.00016438,2]
[390564867,1760086239639,-6104.8,0.00016438,2]
[390564868,1760086239649,-500.0,0.00016438,2]
[390564869,1760086239657,-501.96365242,0.00016438,2]
[390564870,1760086239667,-926.29,0.00016438,2]
[390564871,1760086239676,-500.0,0.00016438,2]
[390564872,1760086239685,-500.0,0.00016438,2]
[390564873,1760086239693,-500.0,0.00016438,2]
[390564874,1760086239703,-500.0,0.00016438,2]
[390564875,1760086239712,-500.0,0.00016438,2]
[390564876,1760086239721,-500.0,0.00016438,2]
[390564877,1760086239731,-500.0,0.00016438,2]
[390564878,1760086239740,-724.11,0.00016438,2]
[390564879,1760086239749,-501.4714528,0.00016438,2]
[390564880,1760086239758,-500.0,0.00016438,2]
[390564881,1760086239768,-747.05,0.00016438,2]
[390564882,1760086239777,-500.0,0.00016438,2]
[390564883,1760086239786,-500.0,0.00016438,2]
[390564884,1760086239796,-500.0,0.00016438,2]
[390564885,1760086239806,-500.0,0.00016438,2]
[390564886,1760086239815,-500.0,0.00016438,2]
[390564887,1760086239824,-500.0,0.00016438,2]
[390564888,1760086239834,-500.0,0.00016438,2]
[390564889,1760086239843,-500.0,0.00016438,2]
[390564890,1760086239852,-501.66725245,0.00016438,2]
[390564891,1760086239862,-500.0,0.00016438,2]
[390564892,1760086239871,-251.49135415,0.00016438,2]
[390564893,1760086239882,-964.12,0.00016438,2]
[390564894,1760086239891,-500.0,0.00016438,2]
[390564896,1760086239900,-500.0,0.00016438,2]
[390564897,1760086239910,-500.0,0.00016438,2]
[390564898,1760086239919,-500.0,0.00016438,2]
[390564899,1760086239929,-500.0,0.00016438,2]
[390564900,1760086239939,-500.0,0.00016438,2]
[390564901,1760086239948,-1350.41,0.00016438,2]
[390564902,1760086239957,-500.0,0.00016438,2]
[390564903,1760086239967,-1366.33,0.00016438,2]
[390564904,1760086239978,-500.0,0.00016438,2]
[390564905,1760086239987,-500.0,0.00016438,2]
[390564906,1760086239997,-938.39,0.00016438,2]
[390564907,1760086240007,-1480.98,0.00016438,2]
[390564908,1760086240017,-500.0,0.00016438,2]
[390564909,1760086240026,-501.60536764,0.00016438,2]
[390564910,1760086240035,-500.0,0.00016438,2]
[390564911,1760086240044,-500.0,0.00016438,2]
[390564912,1760086240054,-500.0,0.00016438,2]
[390564913,1760086240063,-2734.03,0.00016438,2]
[390564914,1760086240072,-500.0,0.00016438,2]
[390564915,1760086240082,-500.0,0.00016438,2]
[390564917,1760086240091,-500.0,0.00016438,2]
[390564919,1760086240100,-500.0,0.00016438,2]
[390564920,1760086240110,-4100.27,0.00016438,2]
[390564921,1760086240119,-500.0,0.00016438,2]
[390564922,1760086240129,-500.0,0.00016438,2]
[390564923,1760086240138,-501.09545884,0.00016438,2]
[390564924,1760086240147,-4333.01,0.00016438,2]
[390564925,1760086240156,-500.0,0.00016438,2]
[390564926,1760086240165,-500.0,0.00016438,2]
[390564927,1760086240174,-502.62941074,0.00016438,2]
[390564928,1760086240183,-7739.3355144,0.00016438,2]
[390564929,1760086240193,-500.0,0.00016438,2]
[390564930,1760086240202,-500.0,0.00016438,2]
[390564931,1760086240211,-500.0,0.00016438,2]
[390564932,1760086240220,-501.41943121,0.00016438,2]
[390564933,1760086240230,-500.0,0.00016438,2]
[390564934,1760086240239,-734.73,0.00016438,2]
[390564936,1760086240248,-500.0,0.00016438,2]
[390564938,1760086240257,-500.0,0.00016438,2]
[390564940,1760086240266,-501.36818589,0.00016438,2]
[390564941,1760086240275,-503.19599363,0.00016438,2]
[390564942,1760086240284,-500.0,0.00016438,2]
[390564943,1760086240293,-553.99,0.00016438,2]
[390564944,1760086240302,-500.0,0.00016438,2]
[390564945,1760086240311,-626.14,0.00016438,2]
[390564946,1760086240320,-940.36,0.00016438,2]
[390564947,1760086240329,-500.0,0.00016438,2]
[390564948,1760086240338,-500.0,0.00016438,2]
[390564949,1760086240348,-500.0,0.00016438,2]
[390564950,1760086240357,-500.0,0.00016438,2]
[390564951,1760086240367,-806.97,0.00016438,2]
[390564952,1760086240376,-500.0,0.00016438,2]
[390564953,1760086240385,-609.99,0.00016438,2]
[390564954,1760086240394,-500.0,0.00016438,2]
[390564955,1760086240403,-469.30839582,0.00016438,2]
[390564956,1760086240412,-500.0,0.00016438,2]
[390564957,1760086240421,-1039.02,0.00016438,2]
[390564958,1760086240431,-525.99772976,0.00016438,2]
[390564959,1760086240442,-500.0,0.00016438,2]
[390564960,1760086240451,-1510.17,0.00016438,2]
[390564961,1760086240461,-500.0,0.00016438,2]
[390564962,1760086240470,-5670.56,0.00016438,2]
[390564964,1760086240481,-502.44828813,0.00016438,2]
[390564965,1760086240490,-340.0008303,0.00016438,2]
[390564966,1760086240499,-500.0,0.00016438,2]
[390564967,1760086240509,-2062.52,0.00016438,2]
[390564968,1760086240519,-523.83,0.00016438,2]
[390564969,1760086240529,-500.0,0.00016438,2]
[390564970,1760086240539,-500.0,0.00016438,2]
[390564971,1760086240548,-500.0,0.00016438,2]
[390564972,1760086240557,-500.0,0.00016438,2]
[390564973,1760086240566,-500.43630551,0.00016438,2]
[390564974,1760086240575,-500.0,0.00016438,2]
[390564975,1760086240585,-500.0,0.00016438,2]
[390564976,1760086240594,-500.0,0.00016438,2]
[390564977,1760086240604,-740.71,0.00016438,2]
[390564978,1760086240613,-500.0,0.00016438,2]
[390564979,1760086240622,-500.0,0.00016438,2]
[390564980,1760086240630,-500.0,0.00016438,2]
[390564981,1760086240640,-500.56236055,0.00016438,2]
[390564982,1760086240649,-500.0,0.00016438,2]
[390564983,1760086240659,-565.37,0.00016438,2]
[390564984,1760086240668,-502.06924811,0.00016438,2]
[390564985,1760086240677,-500.0,0.00016438,2]
[390564986,1760086240686,-500.0,0.00016438,2]
[390564987,1760086240695,-500.0,0.00016438,2]
[390564988,1760086240703,-500.0,0.00016438,2]
[390564989,1760086240712,-500.0,0.00016438,2]
[390564990,1760086240721,-501.46008985,0.00016438,2]
[390564991,1760086240730,-500.0,0.00016438,2]
[390564992,1760086240739,-503.01189571,0.00016438,2]
[390564993,1760086240747,-500.0,0.00016438,2]
[390564994,1760086240757,-2341.16,0.00016438,2]
[390564995,1760086240767,-500.0,0.00016438,2]
[390564996,1760086240778,-500.0,0.00016438,2]
[390564997,1760086240787,-500.89359788,0.00016438,2]
[390564998,1760086240798,-500.0,0.00016438,2]
[390564999,1760086240808,-500.0,0.00016438,2]
[390565000,1760086240818,-500.0,0.00016438,2]
[390565001,1760086240828,-220.45133857,0.00016438,2]
[390565002,1760086240838,-244.73271052,0.00016438,2]
[390565003,1760086240847,-500.0,0.00016438,2]
[390565004,1760086240856,-500.0,0.00016438,2]
[390565005,1760086240866,-5922.75,0.00016438,2]
[390565006,1760086240875,-5922.75,0.00016438,2]
[390565007,1760086240884,-5922.75,0.00016438,2]
[390565008,1760086240893,-501.3236961,0.00016438,2]
[390565009,1760086240902,-5922.75,0.00016438,2]
[390565010,1760086240912,-5922.75,0.00016438,2]
[390565011,1760086240921,-5922.75,0.00016438,2]
[390565012,1760086240931,-500.0,0.00016438,2]
[390565013,1760086240941,-501.78675145,0.00016438,2]
[390565014,1760086240950,-500.0,0.00016438,2]
[390565015,1760086240959,-721.86,0.00016438,2]
[390565016,1760086240968,-500.0,0.00016438,2]
[390565017,1760086240978,-577.08,0.00016438,2]
[390565018,1760086240988,-1278.0,0.00016438,2]
[390565019,1760086240998,-500.0,0.00016438,2]
[390565020,1760086241008,-369.60936673,0.00016438,2]
[390565021,1760086241018,-500.3844994,0.00016438,2]
[390565022,1760086241027,-500.0,0.00016438,2]
[390565023,1760086241037,-500.0,0.00016438,2]
[390565024,1760086241046,-500.0,0.00016438,2]
[390565025,1760086241055,-500.0,0.00016438,2]
[390565026,1760086241064,-500.0,0.00016438,2]
[390565027,1760086241073,-501.09182636,0.00016438,2]
[390565028,1760086241082,-501.23739647,0.00016438,2]
[390565029,1760086241091,-930.64,0.00016438,2]
[390565030,1760086241101,-2586.95,0.00016438,2]
[390565031,1760086241110,-500.0,0.00016438,2]
[390565032,1760086241120,-956.12,0.00016438,2]
[390565033,1760086241129,-592.67,0.00016438,2]
[390565034,1760086241139,-501.65952057,0.00016438,2]
[390565035,1760086241149,-1343.6,0.00016438,2]
[390565036,1760086241160,-500.0,0.00016438,2]
[390565037,1760086241169,-500.0,0.00016438,2]
[390565038,1760086241178,-500.0,0.00016438,2]
[390565039,1760086241187,-945.78,0.00016438,2]
[390565040,1760086241196,-500.0,0.00016438,2]
[390565041,1760086241205,-500.0,0.00016438,2]
[390565042,1760086241214,-500.0,0.00016438,2]
[390565043,1760086241223,-500.0,0.00016438,2]
[390565044,1760086241232,-998.22,0.00016438,2]
[390565045,1760086241241,-200.0,0.00016438,10]
[390565046,1760086241250,-200.0,0.00016438,10]
[390565047,1760086241259,-500.0,0.00016438,2]
[390565048,1760086241268,-200.0,0.00016438,10]
[390565049,1760086241278,-200.0,0.00016438,10]
[390565050,1760086241287,-500.0,0.00016438,2]
[390565051,1760086241296,-200.0,0.00016438,10]
[390565052,1760086241306,-200.0,0.00016438,10]
[390565053,1760086241315,-200.0,0.00016438,10]
[390565054,1760086241324,-501.00529747,0.00016438,2]
[390565055,1760086241332,-200.0,0.00016438,10]
[390565056,1760086241342,-200.0,0.00016438,10]
[390565057,1760086241351,-200.0,0.00016438,10]
[390565058,1760086241360,-500.0,0.00016438,2]
[390565059,1760086241369,-200.0,0.00016438,10]
[390565060,1760086241379,-200.0,0.00016438,10]
[390565061,1760086241388,-200.0,0.00016438,10]
[390565062,1760086241397,-200.0,0.00016438,10]
[390565063,1760086241406,-500.0,0.00016438,2]
[390565064,1760086241416,-2152.12,0.00016438,2]
[390565065,1760086241425,-200.0,0.00016438,10]
[390565066,1760086241440,-200.0,0.00016438,10]
[390565067,1760086241450,-200.0,0.00016438,10]
[390565068,1760086241459,-200.0,0.00016438,10]
[390565069,1760086241468,-500.0,0.00016438,2]
[390565070,1760086241478,-200.0,0.00016438,10]
[390565071,1760086241487,-185.341347,0.00016438,10]
[390565072,1760086241496,-500.0,0.00016438,2]
[390565073,1760086241507,-500.4640918,0.00016438,2]
[390565074,1760086241518,-501.25766401,0.00016438,2]
[390565075,1760086241527,-500.0,0.00016438,2]
[390565076,1760086241537,-565.15,0.00016438,2]
[390565077,1760086241546,-640.41,0.00016438,2]
[390565078,1760086241555,-500.0,0.00016438,2]
[390565079,1760086241564,-500.0,0.00016438,2]
[390565080,1760086241573,-500.0,0.00016438,2]
[390565081,1760086241582,-500.0,0.00016438,2]
[390565082,1760086241591,-500.41016111,0.00016438,2]
[390565083,1760086241600,-500.0,0.00016438,2]
[390565084,1760086241610,-500.0,0.00016438,2]
[390565085,1760086241619,-500.0,0.00016438,2]
[390565086,1760086241627,-500.0,0.00016438,2]
[390565087,1760086241636,-500.0,0.00016438,2]
[390565088,1760086241645,-500.0,0.00016438,2]
[390565089,1760086241655,-500.0,0.00016438,2]
[390565090,1760086241663,-500.0,0.00016438,2]
[390565091,1760086241672,-500.0,0.00016438,2]
[390565092,1760086241681,-500.0,0.00016438,2]
[390565093,1760086241690,-500.0,0.00016438,2]
[390565094,1760086241699,-300.0,0.00016438,2]
[390565095,1760086241709,-2096.83,0.00016438,2]
[390565096,1760086241718,-500.0,0.00016438,2]
[390565097,1760086241727,-500.0,0.00016438,2]
[390565098,1760086241736,-500.0,0.00016438,2]
[390565099,1760086241745,-3322.26,0.00016438,2]
[390565100,1760086241754,-399.44342891,0.00016438,2]
[390565101,1760086241763,-921.09,0.00016438,2]
[390565102,1760086241774,-617.32,0.00016438,2]
[390565103,1760086241784,-500.0,0.00016438,2]
[390565104,1760086241793,-500.0,0.00016438,2]
[390565105,1760086241802,-501.12408537,0.00016438,2]
[390565106,1760086241812,-500.0,0.00016438,2]
[390565107,1760086241821,-500.0,0.00016438,2]
[390565108,1760086241830,-500.0,0.00016438,2]
[390565109,1760086241839,-500.0,0.00016438,2]
[390565110,1760086241849,-500.0,0.00016438,2]
[390565111,1760086241858,-500.0,0.00016438,2]
[390565112,1760086241868,-500.0,0.00016438,2]
[390565113,1760086241878,-500.0,0.00016438,2]
[390565114,1760086241887,-1209.18,0.00016438,2]
[390565115,1760086241896,-500.63790663,0.00016438,2]
[390565116,1760086241905,-500.0,0.00016438,2]
[390565117,1760086241915,-500.0,0.00016438,2]
[390565118,1760086241924,-269.3180671,0.00016438,2]
[390565119,1760086241935,-500.0,0.00016438,2]
[390565120,1760086241944,-500.0,0.00016438,2]
[390565121,1760086241954,-1737.9,0.00016438,2]
[390565122,1760086241962,-651.29,0.00016438,2]
[390565123,1760086241972,-500.0,0.00016438,2]
[390565124,1760086241981,-422.54032191,0.00016438,2]
[390565125,1760086241990,-500.0,0.00016438,2]
[390565126,1760086242000,-500.0,0.00016438,2]
[390565127,1760086242010,-500.0,0.00016438,2]
[390565128,1760086242019,-500.0,0.00016438,2]
[390565129,1760086242028,-500.0,0.00016438,2]
[390565130,1760086242037,-500.0,0.00016438,2]
[390565131,1760086242046,-510.22334251,0.00016438,2]
[390565132,1760086242055,-500.0,0.00016438,2]
[390565133,1760086242064,-500.0,0.00016438,2]
[390565134,1760086242073,-500.0,0.00016438,2]
[390565135,1760086242082,-1090.09,0.00016438,2]
[390565136,1760086242091,-500.0,0.00016438,2]
[390565137,1760086242100,-500.0,0.00016438,2]
[390565138,1760086242109,-414.2972915,0.00016438,2]
[390565139,1760086242118,-500.0,0.00016438,2]
[390565140,1760086242127,-500.0,0.00016438,2]
[390565141,1760086242136,-500.0,0.00016438,2]
[390565142,1760086242145,-500.0,0.00016438,2]
[390565143,1760086242154,-500.0,0.00016438,2]
[390565144,1760086242162,-501.09966293,0.00016438,2]
[390565145,1760086242171,-816.59,0.00016438,2]
[390565146,1760086242180,-500.0,0.00016438,2]
[390565147,1760086242190,-326.42441804,0.00016612,2]
[390565148,1760086242200,-670.11992951,0.00016698,2]
[390565149,1760086242209,-5922.75,0.00016711,2]
[390565150,1760086242219,-5922.75,0.00016711,2]
[390565151,1760086242228,-5922.75,0.00016711,2]
[390565152,1760086242237,-5922.75,0.00016711,2]
[390565153,1760086242247,-5922.75,0.00016711,2]
[390565154,1760086242256,-5922.75,0.00016711,2]
[390565155,1760086242265,-5922.75,0.00016711,2]
[390565156,1760086242274,-500.0,0.00016712,2]
[390565157,1760086242283,-941.18,0.00016712,2]
[390565158,1760086242292,-500.0,0.00016712,2]
[390565159,1760086242301,-500.0,0.00016712,2]
[390565160,1760086242311,-900.14,0.00016712,2]
[390565161,1760086242323,-500.0,0.00016712,2]
[390565162,1760086242332,-500.0,0.00016712,2]
[390565164,1760086242341,-500.0,0.00016712,2]
[390565165,1760086242350,-500.0,0.00016712,2]
[390565166,1760086242360,-246.05984314,0.00016712,2]
[390565168,1760086242368,-500.0,0.00016712,2]
[390565169,1760086242377,-500.0,0.00016712,2]
[390565170,1760086242387,-499.89020805,0.00016712,2]
[390565171,1760086242396,-500.0,0.00016712,2]
[390565172,1760086242405,-569.22,0.00016712,2]
[390565173,1760086242414,-503.5626042,0.00016712,2]
[390565174,1760086242423,-500.0,0.00016712,2]
[390565175,1760086242434,-500.0,0.00016712,2]
[390565176,1760086242445,-500.0,0.00016712,2]
[390565177,1760086242454,-500.0,0.00016712,2]
[390565178,1760086242463,-500.0,0.00016712,2]
[390565179,1760086242473,-500.0,0.00016712,2]
[390565180,1760086242482,-914.63,0.00016712,2]
[390565181,1760086242491,-500.0,0.00016712,2]
[390565182,1760086242501,-500.0,0.00016712,2]
[390565183,1760086242511,-500.0,0.00016712,2]
[390565184,1760086242520,-500.0,0.00016712,2]
[390565185,1760086242529,-199.27098687,0.00016712,2]
[390565186,1760086242538,-500.0,0.00016712,2]
[390565187,1760086242547,-500.0,0.00016712,2]
[390565188,1760086242556,-500.0,0.00016712,2]
[390565189,1760086242565,-1084.95,0.00016712,2]
[390565190,1760086242574,-500.0,0.00016712,2]
[390565191,1760086242583,-240.5526988,0.00016712,2]
[390565192,1760086242592,-500.0,0.00016712,2]
[390565193,1760086242601,-500.0,0.00016712,2]
[390565194,1760086242610,-500.0,0.00016712,2]
[390565195,1760086242619,-977.93,0.00016712,2]
[390565196,1760086242628,-500.0,0.00016712,2]
[390565197,1760086242639,-500.0,0.00016712,2]
[390565198,1760086242651,-500.0,0.00016712,2]
[390565199,1760086242659,-500.0,0.00016712,2]
[390565200,1760086242668,-500.0,0.00016712,2]
[390565201,1760086242677,-500.0,0.00016712,2]
[390565202,1760086242686,-500.0,0.00016712,2]
[390565203,1760086242695,-500.0,0.00016712,2]
[390565205,1760086242704,-1011.91,0.00016712,2]
[390565206,1760086242712,-164.54126561,0.00016712,2]
[390565207,1760086242722,-876.77,0.00016712,2]
[390565208,1760086242731,-500.0,0.00016712,2]
[390565209,1760086242741,-500.0,0.00016712,2]
[390565210,1760086242750,-500.0,0.00016712,2]
[390565211,1760086242760,-583.71909316,0.00016712,2]
[390565212,1760086242769,-500.0,0.00016712,2]
[390565213,1760086242778,-500.0,0.00016712,2]
[390565214,1760086242787,-307.94323806,0.00016712,2]
[390565215,1760086242797,-500.0,0.00016712,2]
[390565216,1760086242806,-500.0,0.00016712,2]
[390565217,1760086242815,-2019.47,0.00016712,2]
[390565218,1760086242824,-500.0,0.00016712,2]
[390565219,1760086242834,-500.0,0.00016712,2]
[390565220,1760086242843,-500.0,0.00016712,2]
[390565221,1760086242852,-500.0,0.00016712,2]
[390565222,1760086242861,-500.0,0.00016712,2]
[390565223,1760086242870,-500.0,0.00016712,2]
[390565224,1760086242880,-500.0,0.00016712,2]
[390565225,1760086242889,-500.0,0.00016712,2]
[390565226,1760086242899,-500.0,0.00016712,2]
[390565227,1760086242908,-435.40714589,0.00016712,2]
[390565228,1760086242917,-500.0,0.00016712,2]
[390565229,1760086242927,-500.0,0.00016712,2]
[390565230,1760086242936,-921.82,0.00016712,2]
[390565231,1760086242946,-748.9,0.00016712,2]
[390565232,1760086242955,-1162.93,0.00016712,2]
[390565233,1760086242965,-500.0,0.00016712,2]
[390565235,1760086242974,-500.0,0.00016712,2]
[390565236,1760086242983,-500.0,0.00016712,2]
[390565237,1760086242992,-500.0,0.00016712,2]
[390565238,1760086243001,-500.0,0.00016712,2]
[390565239,1760086243011,-500.0,0.00016712,2]
[390565240,1760086243020,-6947.29,0.00016712,2]
[390565241,1760086243030,-500.0,0.00016712,2]
[390565242,1760086243039,-770.88,0.00016712,2]
[390565243,1760086243049,-500.0,0.00016712,2]
[390565244,1760086243059,-504.34556787,0.00016712,2]
[390565245,1760086243068,-500.0,0.00016712,2]
[390565246,1760086243078,-429.62596749,0.00016712,2]
[390565247,1760086243088,-500.0,0.00016712,2]
[390565248,1760086243098,-500.0,0.00016712,2]
[390565249,1760086243111,-500.0,0.00016712,2]
[390565250,1760086243122,-500.0,0.00016712,2]
[390565251,1760086243133,-156.61624099,0.00016712,2]
[390565252,1760086243142,-2072.42,0.00016712,2]
[390565253,1760086243152,-500.0,0.00016712,2]
[390565254,1760086243162,-500.0,0.00016712,2]
[390565255,1760086243172,-500.0,0.00016712,2]
[390565256,1760086243181,-500.0,0.00016712,2]
[390565257,1760086243190,-500.0,0.00016712,2]
[390565258,1760086243200,-500.0,0.00016712,2]
[390565259,1760086243210,-500.0,0.00016712,2]
[390565260,1760086243220,-879.56,0.00016712,2]
[390565261,1760086243230,-500.0,0.00016712,2]
[390565262,1760086243239,-500.0,0.00016712,2]
[390565263,1760086243249,-500.0,0.00016712,2]
[390565264,1760086243258,-500.0,0.00016712,2]
[390565265,1760086243268,-500.0,0.00016712,2]
[390565266,1760086243280,-500.0,0.00016712,2]
[390565267,1760086243289,-500.0,0.00016712,2]
[390565268,1760086243298,-2182.76,0.00016712,2]
[390565269,1760086243307,-500.0,0.00016712,2]
[390565270,1760086243318,-500.0,0.00016712,2]
[390565271,1760086243332,-500.0,0.00016712,2]
[390565272,1760086243343,-500.0,0.00016712,2]
[390565273,1760086243352,-500.0,0.00016712,2]
[390565274,1760086243362,-502.17831471,0.00016712,2]
[390565275,1760086243371,-3235.43,0.00016712,2]
[390565276,1760086243380,-500.0,0.00016712,2]
[390565277,1760086243389,-6211.09,0.00016712,2]
[390565278,1760086243399,-500.0,0.00016712,2]
[390565279,1760086243409,-500.0,0.00016712,2]
[390565280,1760086243418,-511.85461427,0.00016712,2]
[390565281,1760086243428,-500.0,0.00016712,2]
[390565282,1760086243591,-500.0,0.00016712,2]
[390565283,1760086243600,-500.0,0.00016712,2]
[390565284,1760086243609,-197.15921158,0.00016712,2]
[390565285,1760086243619,-500.0,0.00016712,2]
[390565286,1760086243629,-500.0,0.00016712,2]
[390565287,1760086243638,-500.0,0.00016712,2]
[390565288,1760086243647,-500.0,0.00016712,2]
[390565289,1760086243656,-500.0,0.00016712,2]
[390565290,1760086243665,-501.76680069,0.00016712,2]
[390565291,1760086243674,-500.0,0.00016712,2]
[390565292,1760086243684,-500.0,0.00016712,2]
[390565293,1760086243693,-500.0,0.00016712,2]
[390565294,1760086243702,-864.2,0.00016712,2]
[390565295,1760086243711,-500.0,0.00016712,2]